fUSD/lending_fUSD_20251013
["ID","MTS","AMOUNT","RATE_DAILY","PERIOD"]
[391147632,1760395843134,-2000.0,0.00029497,2]
[391147635,1760395843143,-4520.82591751,0.00029498,2]
[391147638,1760395843152,-214.0,0.000295,2]
[391147641,1760395843161,-166.66,0.00029503,30]
[391147644,1760395843170,-4475.79966433,0.00029505,2]
[391147647,1760395843179,-156.03543263,0.00029506,15]
[391147650,1760395843188,-4520.82591751,0.00029512,2]
[391147653,1760395843198,-196.828859,0.00029514,2]
[391147656,1760395843207,-9523.81050218,0.00029514,3]
[391147658,1760395843216,-200.0,0.00029518,2]
[391147662,1760395843226,-5000.0,0.00029524,2]
[391147664,1760395843235,-14716.4739,0.00029524,2]
[391147667,1760395843245,-1000.0,0.00029525,2]
[391147670,1760395843255,-4520.82591751,0.00029526,2]
[391147673,1760395843264,-1000.0,0.00029531,2]
[391147676,1760395843274,-28571.4315065,0.00029535,3]
[391147679,1760395843285,-156.03543263,0.00029537,15]
[391147682,1760395843295,-4520.82591751,0.00029539,2]
[391147685,1760395843305,-508.0,0.00029543,2]
[391147688,1760395843315,-500.0,0.00029543,2]
[391147691,1760395843325,-14250.51751913,0.00029545,3]
[391147702,1760395843373,-41304.48248087,0.00029545,3]
[391147705,1760395843382,-1000.0,0.00029548,2]
[391147708,1760395843391,-150.0,0.0002955,2]
[391147711,1760395843400,-4520.82591751,0.00029553,2]
[391147714,1760395843409,-9523.81050218,0.00029557,3]
[391147717,1760395843419,-255.953151,0.00029564,7]
[391147720,1760395843427,-116866.48615747,0.00029567,8]
[391147723,1760395843439,-461.412428,0.00029567,8]
[391147726,1760395843451,-1012.85979988,0.00029567,8]
[391147729,1760395843463,-2443.78171448,0.00029567,8]
[391147732,1760395843474,-1130.40073013,0.00029567,8]
[391147734,1760395843486,-1338.89025357,0.00029567,8]
[391147975,1760395845836,-6363.57417,0.00029567,8]
[391147980,1760395845880,-10138.17352937,0.00029567,8]
[391147986,1760395845925,-47068.788766,0.00029567,8]
[391147993,1760395845975,-339235.82981063,0.00029567,8]
[391147996,1760395845986,-196.828859,0.00029567,2]
[391147998,1760395845995,-4475.79966433,0.00029567,2]
[391148000,1760395846005,-156.03543263,0.00029567,15]
[391148002,1760395846015,-572.63387564,0.00029567,2]
[391148004,1760395846024,-4520.82591751,0.00029567,2]
[391148006,1760395846034,-889.7531084,0.00029567,2]
[391148008,1760395846047,-346.79078582,0.00029567,2]
[391148010,1760395846064,-206.2177643,0.00029567,5]
[391148012,1760395846074,-1000.0,0.00029569,2]
[391148014,1760395846084,-150.0,0.00029571,2]
[391148016,1760395846093,-168.0,0.00029583,2]
[391148018,1760395846102,-207.40607804,0.00029583,2]
[391148020,1760395846112,-1425.0,0.00029589,2]
[391148022,1760395846121,-209523.831048,0.00029592,3]
[391148024,1760395846131,-170751.845206,0.00029592,3]
[391148026,1760395846140,-151.0,0.00029593,30]
[391148028,1760395846150,-151.0,0.00029593,30]
[391148030,1760395846159,-151.0,0.00029593,7]
[391148032,1760395846168,-151.0,0.00029593,30]
[391148034,1760395846178,-151.0,0.00029593,30]
[391148036,1760395846188,-151.0,0.00029593,30]
[391148038,1760395846197,-152.775402,0.00029593,30]
[391148040,1760395846207,-508.0,0.00029598,2]
[391148042,1760395846216,-500.0,0.00029598,2]
[391148044,1760395846225,-2126.0,0.0002961,2]
[391148046,1760395846235,-767.55829107,0.0002961,2]
[391148048,1760395846244,-151.0,0.00029614,30]
[391148051,1760395846253,-151.0,0.00029614,30]
[391148053,1760395846263,-151.0,0.00029614,30]
[391148055,1760395846273,-151.0,0.00029614,30]
[391148057,1760395846284,-151.0,0.00029614,30]
[391148059,1760395846293,-151.0,0.00029614,30]
[391148061,1760395846303,-151.0,0.00029614,30]
[391148063,1760395846312,-151.0,0.00029614,30]
[391148066,1760395846322,-151.0,0.00029614,30]
[391148068,1760395846331,-151.0,0.00029614,30]
[391148070,1760395846341,-151.0,0.00029614,30]
[391148072,1760395846351,-151.0,0.00029614,30]
[391148074,1760395846360,-151.0,0.00029614,15]
[391148076,1760395846370,-151.0,0.00029614,30]
[391148078,1760395846380,-151.0,0.00029614,30]
[391148080,1760395846389,-151.0,0.00029614,30]
[391148082,1760395846398,-151.0,0.00029614,30]
[391148084,1760395846407,-151.0,0.00029614,30]
[391148086,1760395846417,-151.0,0.00029614,30]
[391148088,1760395846427,-1000.0,0.00029615,2]
[391148091,1760395846437,-1425.0,0.00029616,2]
[391148093,1760395846446,-8537.59226029,0.00029619,3]
[391148095,1760395846455,-8537.59226029,0.00029624,3]
[391148097,1760395846464,-151.0,0.00029624,30]
[391148099,1760395846474,-151.0,0.00029624,30]
[391148101,1760395846483,-151.0,0.00029624,30]
[391148103,1760395846492,-151.0,0.00029624,30]
[391148105,1760395846501,-151.548541,0.00029624,30]
[391148107,1760395846511,-151.0,0.00029624,30]
[391148109,1760395846520,-151.0,0.00029624,30]
[391148111,1760395846530,-151.0,0.00029624,30]
[391148113,1760395846539,-239.85686338,0.00029624,30]
[391148115,1760395846548,-5000.0,0.00029629,2]
[391148117,1760395846558,-5000.0,0.00029631,3]
[391148119,1760395846567,-5000.0,0.00029632,3]
[391148121,1760395846576,-1425.0,0.00029633,2]
[391148123,1760395846586,-5000.0,0.00029634,3]
[391148125,1760395846596,-18740.45341278,0.00029635,3]
[391148128,1760395846607,-4306.3172684,0.00029635,3]
[391148130,1760395846618,-1202.83832928,0.00029635,3]
[391148132,1760395846629,-302.628,0.00029635,3]
[391148134,1760395846641,-427.32439843,0.00029635,3]
[391148136,1760395846652,-9776.5448937,0.00029635,3]
[391148139,1760395846664,-555.18,0.00029635,3]
[391148141,1760395846675,-3904.53159531,0.00029635,3]
[391148143,1760395846687,-8659.56002173,0.00029635,3]
[391148145,1760395846698,-22053.38255187,0.00029635,3]
[391148147,1760395846709,-426.26417735,0.00029635,3]
[391148150,1760395846721,-4887.8662834,0.00029635,3]
[391148745,1760397032063,-174.69,0.00014331,2]
[391148746,1760397032073,-300.0,0.00015368,2]
[391148747,1760397032083,-300.0,0.00015368,2]
[391148748,1760397032093,-489.60844031,0.00015368,2]
[391148749,1760397032105,-478.39155969,0.00015368,2]
[391148750,1760397032114,-187.60844031,0.00015764,2]
[391148751,1760397032125,-7.39155969,0.00015764,2]
[391148752,1760397032134,-150.0,0.00015764,2]
[391148753,1760397032143,-442.29035537,0.000158,2]
[391148754,1760397032168,-57.70964463,0.000158,2]
[391148755,1760397032178,-174.69,0.00017914,2]
[391148756,1760397032188,-3440.96679529,0.00018924,2]
[391148757,1760397032197,-174.69,0.00021497,2]
[391148758,1760397032207,-500.0,0.00024932,2]
[391148759,1760397032217,-174.69,0.0002508,2]
[391148760,1760397032227,-250.0,0.0002546,7]
[391148761,1760397032238,-201.69,0.0002546,2]
[391148762,1760397032249,-255.0,0.00025489,2]
[391148763,1760397032258,-635.49,0.00025489,120]
[391148764,1760397032268,-126.12047759,0.0002556,2]
[391148765,1760397032279,-56.45952241,0.0002556,2]
[391148766,1760397032290,-151.56,0.0002556,2]
[391148767,1760397032299,-890.77,0.00026,10]
[391148768,1760397032310,-837.49234051,0.00026048,2]
[391148769,1760397032320,-81.41383189,0.00026544,2]
[391148770,1760397032342,-454.9276565,0.00026544,2]
[391148771,1760397032357,-2674.98851161,0.00026544,2]
[391148772,1760397032366,-219.39904159,0.00026679,4]
[391148773,1760397032375,-150.0,0.00026679,4]
[391148774,1760397032384,-150.0,0.00026679,4]
[391148775,1760397032394,-150.0,0.00026679,4]
[391148776,1760397032404,-150.0,0.00026679,4]
[391148777,1760397032413,-213.3,0.00026679,4]
[391148778,1760397032422,-150.0,0.00026679,4]
[391148779,1760397032431,-150.0,0.00026679,4]
[391148780,1760397032441,-150.0,0.00026679,4]
[391148781,1760397032452,-150.0,0.00026679,4]
[391148782,1760397032462,-152.0,0.00027009,3]
[391148783,1760397032471,-68.40925984,0.00027069,2]
[391148791,1760397034277,-246.22879874,0.00027069,2]
[391148792,1760397034287,-180.0,0.00027154,120]
[391148793,1760397034296,-500.0,0.0002735,2]
[391148794,1760397034304,-500.0,0.0002735,2]
[391148795,1760397034314,-1000.0,0.0002749,2]
[391148796,1760397034324,-731.20413871,0.00027823,2]
[391148797,1760397034337,-5727.36451826,0.00027823,2]
[391148798,1760397034346,-797.81637227,0.00027898,5]
[391148799,1760397034355,-200.0,0.00027902,2]
[391148800,1760397034364,-151.0,0.00027902,2]
[391148801,1760397034373,-200.0,0.00027902,2]
[391148802,1760397034382,-1131.624,0.00027923,18]
[391148803,1760397034391,-1000.0,0.00027983,2]
[391148804,1760397034400,-9552.16786547,0.00027984,2]
[391148805,1760397034409,-445.8000011,0.00027984,2]
[391148806,1760397034418,-670.58624095,0.00027984,2]
[391148807,1760397034427,-322.6107,0.00027984,2]
[391148808,1760397034437,-151.0,0.00027984,2]
[391148809,1760397034450,-257.91778498,0.00027984,2]
[391148810,1760397034459,-2000.0,0.00027984,2]
[391148811,1760397034468,-2000.0,0.00027984,2]
[391148812,1760397034477,-2000.0,0.00027984,2]
[391148813,1760397034487,-1000.0,0.00027984,2]
[391148814,1760397034497,-500.0,0.00028,5]
[391148815,1760397034506,-372.80290849,0.00028,5]
[391148816,1760397034517,-500.0,0.00028,3]
[391148817,1760397034526,-500.0,0.00028,5]
[391148818,1760397034537,-500.0,0.00028,5]
[391148819,1760397034547,-500.0,0.00028,5]
[391148820,1760397034556,-500.0,0.00028001,7]
[391148821,1760397034566,-1000.0,0.00028001,7]
[391148822,1760397034575,-300.0,0.00028011,7]
[391148823,1760397034584,-450.0,0.00028011,7]
[391148824,1760397034595,-9711.14652568,0.00028039,2]
[391148825,1760397034606,-300.0,0.00028148,7]
[391148826,1760397034615,-152.0,0.00028154,4]
[391148827,1760397034626,-200.0,0.0002845,2]
[391148828,1760397034636,-200.0,0.0002845,2]
[391148829,1760397034645,-1000.0,0.000285,2]
[391148830,1760397034654,-151.0,0.00028532,2]
[391148831,1760397034663,-500.0,0.00028548,5]
[391148832,1760397034673,-168.0,0.00028615,2]
[391148833,1760397034682,-174.69,0.00028663,2]
[391148834,1760397034691,-635.49,0.00028676,120]
[391148835,1760397034700,-2027.0,0.00028721,2]
[391148836,1760397034709,-1873.11682774,0.00028754,2]
[391148837,1760397034719,-372.79494855,0.00028813,2]
[391148839,1760397034728,-500.0,0.00028823,7]
[391148840,1760397034737,-1000.0,0.00028823,7]
[391148841,1760397034746,-523.07,0.0002899,2]
[391148843,1760397034755,-500.0,0.00028999,2]
[391148844,1760397034764,-500.0,0.00028999,2]
[391148845,1760397034773,-500.0,0.00028999,2]
[391148846,1760397034782,-306.15418255,0.00028999,2]
[391148847,1760397034791,-500.0,0.00028999,2]
[391148848,1760397034800,-194807.21,0.00029,2]
[391148849,1760397034809,-4190.30805104,0.00029,4]
[391148850,1760397034822,-160.98,0.00029,2]
[391148851,1760397034831,-2027.0,0.00029018,2]
[391148852,1760397034840,-5800.0,0.00029037,2]
[391148853,1760397034849,-5800.0,0.00029045,2]
[391148854,1760397034858,-5800.0,0.00029053,2]
[391148855,1760397034867,-5800.0,0.00029062,2]
[391148856,1760397034876,-7760.14189067,0.00029069,3]
[391148857,1760397034885,-5800.0,0.00029071,2]
[391148858,1760397034895,-5800.0,0.00029079,2]
[391148859,1760397034904,-807.89808111,0.00029086,3]
[391148860,1760397034916,-6952.24380956,0.00029086,3]
[391148861,1760397034925,-5800.0,0.00029088,2]
[391148862,1760397034934,-500.0,0.00029094,120]
[391148863,1760397034943,-500.0,0.00029094,120]
[391148864,1760397034952,-500.0,0.00029094,120]
[391148865,1760397034961,-162.17788973,0.00029094,15]
[391148866,1760397034971,-5800.0,0.00029096,2]
[391148867,1760397034980,-102.55748654,0.00029104,2]
[391148868,1760397034991,-6116.04820127,0.00029104,2]
[391148869,1760397035000,-5000.0,0.00029105,2]
[391148870,1760397035009,-7760.14189067,0.00029147,3]
[391148871,1760397035021,-6218.60568775,0.00029157,2]
[391148872,1760397035033,-160.27461446,0.00029173,5]
[391148873,1760397035042,-38800.7094533,0.00029185,3]
[391148874,1760397035051,-523.07,0.00029185,2]
[391148875,1760397035060,-7760.14189067,0.00029194,3]
[391148876,1760397035069,-93121.702688,0.00029195,3]
[391148877,1760397035079,-65439.3074619,0.00029195,3]
[391148878,1760397035088,-6543.93074619,0.000292,3]
[391148879,1760397035097,-7760.14189067,0.000292,3]
[391148880,1760397035106,-397.80989478,0.00029204,2]
[391148881,1760397035115,-196687.2815742,0.00029205,2]
[391148882,1760397035124,-6218.60568775,0.0002921,2]
[391148883,1760397035133,-6543.93074619,0.00029243,3]
[391148884,1760397035143,-4593.67249686,0.00029253,3]
[391148885,1760397035154,-3166.46939381,0.00029253,3]
[391148886,1760397035163,-6218.60568775,0.00029263,2]
[391148887,1760397035172,-500.0,0.00029273,5]
[391148888,1760397035181,-500.0,0.00029273,2]
[391148889,1760397035189,-501.24219241,0.00029273,5]
[391148890,1760397035198,-6543.93074619,0.00029295,3]
[391148891,1760397035208,-152.0,0.00029299,5]
[391148892,1760397035216,-7760.14189067,0.00029306,3]
[391148893,1760397035225,-2027.0,0.00029314,2]
[391148894,1760397035234,-2922.13983838,0.00029316,2]
[391148895,1760397035245,-572.17308832,0.00029316,2]
[391148896,1760397035256,-357.0363872,0.00029316,2]
[391148897,1760397035267,-400.63216166,0.00029316,2]
[391148900,1760397038041,-372.09099536,0.00029194,2]
[391148901,1760397038051,-357.44934119,0.00029194,2]
[391148902,1760397038061,-500.0,0.00029194,2]
[391148903,1760397038071,-288.64547314,0.00029194,2]
[391148904,1760397038080,-145.820782,0.00029194,2]
[391148905,1760397038296,-354.179218,0.00029194,2]
[391148906,1760397038306,-1966.62421219,0.00029316,2]
[391148907,1760397038315,-193.21224143,0.0002933,2]
[391148908,1760397038326,-4459.38263858,0.00029344,3]
[391148909,1760397038343,-761.36053784,0.00029344,3]
[391148910,1760397038354,-939.99597974,0.00029344,3]
[391148911,1760397038366,-304.59816976,0.00029344,3]
[391149093,1760397040165,-78.59342027,0.00029344,3]
[391149095,1760397040175,-1000.0,0.00029354,2]
[391149097,1760397040184,-6543.93074619,0.00029367,3]
[391149099,1760397040194,-6218.60568775,0.00029368,2]
[391149101,1760397040203,-7760.14189067,0.00029377,3]
[391149103,1760397040212,-1000.0,0.00029385,2]
[391149105,1760397040221,-1000.0,0.00029385,2]
[391149107,1760397040230,-1000.0,0.00029402,2]
[391149109,1760397040239,-150.0,0.00029406,2]
[391149111,1760397040249,-6543.93074619,0.0002941,3]
[391149113,1760397040259,-7760.14189067,0.0002942,3]
[391149115,1760397040268,-6218.60568775,0.00029421,2]
[391149117,1760397040277,-288.13,0.00029429,2]
[391149119,1760397040287,-1000.0,0.00029443,2]
[391149121,1760397040296,-196.15140527,0.00029445,2]
[391149123,1760397040305,-364.0,0.00029451,5]
[391149125,1760397040314,-500.0,0.00029452,2]
[391149127,1760397040324,-1000.0,0.00029456,2]
[391149129,1760397040333,-6543.93074619,0.00029457,3]
[391149131,1760397040343,-7760.14189067,0.00029466,3]
[391149133,1760397040353,-6218.60568775,0.00029474,2]
[391149135,1760397040362,-150.0,0.00029475,2]
[391149137,1760397040371,-6543.93074619,0.00029487,3]
[391149139,1760397040381,-2000.0,0.00029497,2]
[391149141,1760397040390,-326.0,0.00029502,120]
[391149143,1760397040399,-205.27217842,0.00029514,3]
[391149145,1760397040411,-405.28705655,0.00029514,3]
[391149147,1760397040423,-1420.7471251,0.00029514,3]
[391149150,1760397040434,-2340.00000005,0.00029514,3]
[391149152,1760397040452,-1780.23746608,0.00029514,3]
[391149415,1760397043055,-392.38691999,0.00029514,3]
[391149417,1760397043064,-508.73911147,0.00029517,3]
[391149431,1760397043191,-7251.4027792,0.00029517,3]
[391149433,1760397043201,-7760.14189067,0.00029525,3]
[391149435,1760397043211,-6218.60568775,0.00029527,2]
[391149437,1760397043219,-4597.06764238,0.00029528,3]
[391149440,1760397043230,-1946.86310381,0.00029528,3]
[391149442,1760397043240,-196.82885898,0.00029535,2]
[391149444,1760397043249,-7760.14189067,0.00029538,3]
[391149446,1760397043258,-1000.0,0.0002954,2]
[391149448,1760397043267,-261.29005767,0.00029544,2]
[391149450,1760397043276,-47995.5591,0.00029544,3]
[391149452,1760397043285,-6543.93074619,0.0002956,3]
[391149495,1760397043689,-615.89601489,0.00029561,2]
[391149499,1760397043711,-615.89601489,0.00029564,2]
[391149501,1760397043720,-615.89601489,0.00029567,2]
[391149503,1760397043730,-381.7559171,0.00029567,2]
[391149505,1760397043740,-7760.14189067,0.0002957,3]
[391149507,1760397043749,-6543.93074619,0.0002957,3]
[391149509,1760397043759,-381.75591709,0.00029574,2]
[391149511,1760397043768,-6218.60568775,0.0002958,2]
[391149513,1760397043778,-381.75591709,0.0002958,2]
[391149515,1760397043787,-162.17788973,0.0002958,15]
[391149517,1760397043796,-2816.37413054,0.0002958,2]
[391149519,1760397043805,-6543.93074619,0.0002959,3]
[391149521,1760397043815,-1000.0,0.00029596,2]
[391149523,1760397043824,-500.0,0.00029598,60]
[391149525,1760397043833,-500.0,0.00029598,60]
[391149527,1760397043842,-500.0,0.00029598,60]
[391149529,1760397043852,-500.0,0.00029598,60]
[391149531,1760397043864,-150.0,0.00029598,2]
[391149532,1760397043873,-150.0,0.00029598,2]
[391149534,1760397043882,-500.0,0.00029598,2]
[391149536,1760397043891,-500.0,0.00029598,2]
[391149538,1760397043900,-250.0,0.00029598,2]
[391149540,1760397043910,-150.0,0.00029598,2]
[391149542,1760397043919,-500.0,0.00029598,2]
[391149544,1760397043929,-150.0,0.00029598,2]
[391149546,1760397043938,-200.0,0.00029598,2]
[391149548,1760397043947,-200.0,0.00029598,2]
[391149550,1760397043957,-200.0,0.00029598,2]
[391149552,1760397043966,-150.0,0.00029598,2]
[391149554,1760397043975,-229.0,0.00029598,2]
[391149557,1760397043985,-500.0,0.00029598,2]
[391149559,1760397043994,-150.0,0.00029598,2]
[391149561,1760397044003,-150.0,0.00029598,2]
[391149563,1760397044013,-150.0,0.00029598,2]
[391149565,1760397044023,-150.0,0.00029598,2]
[391149567,1760397044036,-150.0,0.00029598,2]
[391149569,1760397044045,-150.0,0.00029598,2]
[391149571,1760397044055,-150.0,0.00029598,2]
[391149573,1760397044064,-200.0,0.00029598,2]
[391149575,1760397044074,-150.0,0.00029598,2]
[391149577,1760397044083,-201.64275176,0.00029598,2]
[391149579,1760397044093,-1061.14,0.000296,3]
[391149581,1760397044103,-2027.0,0.0002961,2]
[391149583,1760397044113,-704.26839689,0.0002961,2]
[391149585,1760397044123,-26175.7229848,0.00029621,3]
[391149587,1760397044133,-6543.93074619,0.00029623,3]
[391149590,1760397044142,-212.95957105,0.00029624,30]
[391149592,1760397044152,-29727.50889786,0.00029631,2]
[391149594,1760397044163,-734.04574579,0.00029631,2]
[391149596,1760397044175,-307.79937745,0.00029631,2]
[391149598,1760397044186,-3668.51533827,0.00029631,2]
[391149601,1760397044198,-12168.12351473,0.00029631,2]
[391149603,1760397044207,-514.24295208,0.00029631,2]
[391149605,1760397044219,-4364.95820879,0.00029631,2]
[391149607,1760397044230,-2498.55872883,0.00029631,2]
[391149609,1760397044239,-7170.488735,0.00029631,2]
[391149611,1760397044249,-151.0,0.00029631,30]
[391149613,1760397044258,-151.0,0.00029631,30]
[391149615,1760397044267,-151.0,0.00029631,30]
[391149617,1760397044277,-151.0,0.00029631,30]
[391149619,1760397044287,-151.0,0.00029631,30]
[391149621,1760397044296,-151.0,0.00029631,30]
[391149623,1760397044305,-151.0,0.00029631,30]
[391149625,1760397044315,-151.0,0.00029631,30]
[391149627,1760397044325,-1893.34438,0.00029633,2]
[391149630,1760397044336,-318.464684,0.00029633,30]
[391149632,1760397044346,-199.942925,0.00029633,30]
[391149634,1760397044355,-318.464684,0.00029633,30]
[391149636,1760397044364,-151.0,0.00029633,7]
[391149638,1760397044373,-151.0,0.00029633,30]
[391149640,1760397044382,-318.464684,0.00029633,30]
[391149642,1760397044392,-151.0,0.00029633,7]
[391149644,1760397044401,-151.0,0.00029633,30]
[391149646,1760397044410,-318.464684,0.00029633,30]
[391149648,1760397044420,-151.0,0.00029633,30]
[391149650,1760397044429,-209.3318,0.00029633,7]
[391149652,1760397044438,-151.0,0.00029633,30]
[391149654,1760397044451,-151.0,0.00029633,30]
[391149656,1760397044460,-151.0,0.00029633,30]
[391149658,1760397044470,-151.0,0.00029633,30]
[391149660,1760397044479,-151.0,0.00029633,30]
[391149662,1760397044491,-151.0,0.00029633,30]
[391149664,1760397044500,-151.0,0.00029633,30]
[391149666,1760397044509,-151.0,0.00029633,30]
[391149668,1760397044521,-304.350869,0.00029633,30]
[391149670,1760397044531,-304.350869,0.00029633,30]
[391149672,1760397044541,-304.350869,0.00029633,30]
[391149674,1760397044551,-304.350869,0.00029633,30]
[391149676,1760397044560,-151.0,0.00029633,30]
[391149679,1760397044570,-151.0,0.00029633,30]
[391149681,1760397044580,-252.29798,0.00029633,30]
[391149683,1760397044589,-524.02,0.00029634,2]
[391149685,1760397044599,-10238.10511252,0.00029634,3]
[391149878,1760397046453,-6182.10233035,0.00029634,3]
[391149880,1760397046464,-354.70923108,0.00029634,3]
[391149883,1760397046480,-686.69924265,0.00029634,3]
[391149885,1760397046491,-666.0,0.00029634,3]
[391149887,1760397046504,-284.44366872,0.00029634,3]
[391149890,1760397046516,-345.59316,0.00029634,3]
[391149892,1760397046527,-874.13949328,0.00029634,3]
[391149894,1760397046540,-192.55268559,0.00029634,2]
[391149896,1760397046550,-33633.30782113,0.00029634,3]
[391150648,1760397676872,-296.14,0.00013699,2]
[391150649,1760397676899,-761.60223052,0.00013849,2]
[391150650,1760397678777,-1185.8183897,0.00013849,2]
[391150651,1760397737324,-52.57937978,0.00013849,2]
[391150652,1760397737347,-233.98753052,0.00013925,2]
[391150653,1760397738891,-500.0,0.00013925,2]
[391150654,1760397742583,-1050.0627,0.00013925,2]
[391150666,1760398064607,-500.0,0.00013599,2]
[391150667,1760398064629,-215.94976948,0.00013925,2]
[391150668,1760398064651,-250.0,0.00013962,2]
[391150669,1760398064672,-195.0,0.00013962,2]
[391150670,1760398064693,-176.77895,0.00014,2]
[391150671,1760398064715,-300.0,0.00014137,2]
[391150672,1760398064736,-195.0,0.00014204,2]
[391150673,1760398064759,-2000.0,0.00014359,2]
[391150674,1760398064780,-1050.0627,0.000146,2]
[391150675,1760398064800,-493.1588286,0.00014685,2]
[391150676,1760398064821,-195.0,0.00014958,2]
[391150677,1760398064843,-2000.0,0.00014958,2]
[391150678,1760398064865,-300.0,0.00014999,2]
[391150679,1760398064888,-129.04975192,0.00014999,2]
[391150680,1760398066424,-20.95024808,0.00014999,2]
[391150681,1760398066447,-7979.04975192,0.00015,2]
[391150682,1760398067844,-8000.0,0.00015,2]
[391150684,1760398070766,-8000.0,0.00015,2]
[391150701,1760398174136,-1889.63579619,0.00015,2]
[391150702,1760398174174,-2909.43331781,0.00015,2]
[391150714,1760398232217,-17424.20184164,0.00015,2]
[391150715,1760398232227,-252.35506611,0.00015,2]
[391150716,1760398232236,-13005.66484,0.000162,5]
[391150717,1760398232246,-2000.0,0.00016499,2]
[391150718,1760398232255,-2000.0,0.00016499,2]
[391150720,1760398232264,-2000.0,0.000165,2]
[391150722,1760398232274,-300.0,0.000165,2]
[391150724,1760398232284,-286.5669103,0.000165,2]
[391150726,1760398232293,-300.0,0.000165,2]
[391150728,1760398232303,-151.0,0.00018893,2]
[391150729,1760398232313,-151.0,0.00018893,2]
[391150730,1760398232322,-151.0,0.00018893,2]
[391150731,1760398232332,-151.0,0.00018893,2]
[391150732,1760398232342,-151.0,0.00018893,2]
[391150733,1760398232352,-151.0,0.00018893,2]
[391150734,1760398232361,-151.0,0.00018893,2]
[391150735,1760398232370,-151.0,0.00018893,2]
[391150736,1760398232380,-151.0,0.00018893,2]
[391150737,1760398232388,-151.0,0.00018893,2]
[391150738,1760398232398,-151.0,0.00018893,2]
[391150739,1760398232409,-151.0,0.00018893,2]
[391150740,1760398232418,-151.0,0.00018893,2]
[391150741,1760398232428,-151.0,0.00018893,2]
[391150742,1760398232438,-151.0,0.00018893,2]
[391150743,1760398232449,-151.0,0.00018893,2]
[391150744,1760398232459,-151.0,0.00018893,2]
[391150745,1760398232470,-151.0,0.00018893,2]
[391150746,1760398232481,-151.0,0.00018893,2]
[391150747,1760398232490,-151.0,0.00018893,2]
[391150748,1760398232499,-151.0,0.00018893,2]
[391150749,1760398232509,-200.0,0.00018893,2]
[391150750,1760398232518,-151.0,0.00018893,2]
[391150751,1760398232527,-151.0,0.00018893,2]
[391150752,1760398232537,-151.0,0.00018893,2]
[391150753,1760398232546,-151.0,0.00018893,2]
[391150754,1760398232556,-151.0,0.00018893,2]
[391150755,1760398232567,-151.0,0.00018893,2]
[391150756,1760398232578,-151.0,0.00018893,2]
[391150757,1760398232588,-151.0,0.00018893,2]
[391150759,1760398232598,-151.0,0.00018893,2]
[391150760,1760398232607,-500.0,0.00018893,2]
[391150761,1760398232616,-500.0,0.00018893,2]
[391150762,1760398232626,-500.0,0.00018893,2]
[391150763,1760398232635,-500.0,0.00018893,2]
[391150764,1760398232645,-160.15730937,0.00018893,2]
[391150765,1760398232654,-205.73527784,0.00018893,2]
[391150767,1760398232664,-151.0,0.00018893,2]
[391150770,1760398232674,-151.0,0.00018893,2]
[391150772,1760398232685,-151.0,0.00018893,2]
[391150774,1760398232694,-151.0,0.00018893,2]
[391150775,1760398232704,-151.0,0.00018893,2]
[391150776,1760398232713,-151.0,0.00018893,2]
[391150777,1760398232722,-151.0,0.00018893,2]
[391150778,1760398232732,-151.0,0.00018893,2]
[391150779,1760398232741,-151.0,0.00018893,2]
[391150780,1760398232751,-154.49405679,0.00018893,2]
[391150781,1760398232760,-200.0,0.00018893,2]
[391150782,1760398232769,-151.0,0.00018893,2]
[391150783,1760398232778,-151.0,0.00018893,2]
[391150784,1760398232787,-151.0,0.00018893,2]